[Event "Titled Tuesday Blitz November 14 Late 2023"]
[White "Kamsky, Gata"]
[Black "Andreikin, Dmitry"]
[WhiteFideId "2000024"]
[BlackFideId "4158814"]
[WhiteElo "2931"]
[BlackElo "3122"]
[Result "1/2-1/2"]
[Round "9"]
[TimeControl "180+1"]
[Date "2023.11.14"]
[WhiteClock "0:01:56"]
[BlackClock "0:02:55"]
[Board "4"]

1. e4 {[%clk 0:03:00]}  e5 {[%clk 0:02:59]} 2. Nf3 {[%clk 0:03:00]}  Nf6 {[%clk 0:02:59]} 3. Nxe5 {[%clk 0:02:56]}  d6 {[%clk 0:02:58]} 4. Nf3 {[%clk 0:02:56]}  Nxe4 {[%clk 0:02:59]} 5. d4 {[%clk 0:02:52]}  d5 {[%clk 0:02:58]} 6. Bd3 {[%clk 0:02:53]}  Be7 {[%clk 0:02:58]} 7. O-O {[%clk 0:02:53]}  Nc6 {[%clk 0:02:59]} 8. Re1 {[%clk 0:02:50]}  Bg4 {[%clk 0:02:56]} 9. c3 {[%clk 0:02:25]}  f5 {[%clk 0:02:56]} 10. Nbd2 {[%clk 0:02:11]}  O-O {[%clk 0:02:55]} 11. Qb3 {[%clk 0:02:02]}  Na5 {[%clk 0:02:55]} 12. Qc2 {[%clk 0:01:57]}  Nc6 {[%clk 0:02:54]} 13. Qb3 {[%clk 0:01:56]}  Na5 {[%clk 0:02:54]} 14. Qc2 {[%clk 0:01:56]}  Nc6 {[%clk 0:02:55]} 15. Qb3 {[%clk 0:01:56]} 1/2-1/2


[Site "https://www.chess.com"]

[Event "Titled Tuesday Blitz November 14 Late 2023"]
[White "Martinez Alcantara, Jose Eduardo"]
[Black "Mikaelyan, Arman"]
[WhiteFideId "3805662"]
[BlackFideId "13304852"]
[WhiteElo "3023"]
[BlackElo "2838"]
[Result "1-0"]
[Round "9"]
[TimeControl "180+1"]
[Date "2023.11.14"]
[WhiteClock "0:00:04"]
[BlackClock "0:00:00"]
[Board "5"]

1. e4 {[%clk 0:03:00]}  e5 {[%clk 0:03:00]} 2. Nf3 {[%clk 0:03:01]}  Nc6 {[%clk 0:03:00]} 3. Bb5 {[%clk 0:03:01]}  a6 {[%clk 0:03:00]} 4. Ba4 {[%clk 0:03:02]}  Nf6 {[%clk 0:03:01]} 5. d3 {[%clk 0:03:02]}  b5 {[%clk 0:03:00]} 6. Bb3 {[%clk 0:03:02]}  Be7 {[%clk 0:03:01]} 7. c3 {[%clk 0:03:03]}  O-O {[%clk 0:03:00]} 8. Nbd2 {[%clk 0:03:03]}  d6 {[%clk 0:03:01]} 9. h3 {[%clk 0:03:03]}  Na5 {[%clk 0:03:01]} 10. Bc2 {[%clk 0:03:03]}  c5 {[%clk 0:03:01]} 11. O-O {[%clk 0:03:04]}  Nc6 {[%clk 0:03:02]} 12. Re1 {[%clk 0:03:04]}  Re8 {[%clk 0:02:56]} 13. Nf1 {[%clk 0:03:04]}  Bf8 {[%clk 0:02:57]} 14. Bg5 {[%clk 0:03:04]}  h6 {[%clk 0:02:55]} 15. Bxf6 {[%clk 0:03:05]}  Qxf6 {[%clk 0:02:56]} 16. Ne3 {[%clk 0:03:05]}  Ne7 {[%clk 0:02:49]} 17. a4 {[%clk 0:03:00]}  Bb7 {[%clk 0:02:49]} 18. Bb3 {[%clk 0:02:55]}  h5 {[%clk 0:02:43]} 19. h4 {[%clk 0:02:41]}  c4 {[%clk 0:01:25]} 20. dxc4 {[%clk 0:02:32]}  Bxe4 {[%clk 0:01:23]} 21. Ng5 {[%clk 0:02:20]}  Bg6 {[%clk 0:01:24]} 22. axb5 {[%clk 0:02:17]}  axb5 {[%clk 0:01:24]} 23. Rxa8 {[%clk 0:02:17]}  Rxa8 {[%clk 0:01:24]} 24. cxb5 {[%clk 0:02:17]}  Rb8 {[%clk 0:01:19]} 25. Bc4 {[%clk 0:02:07]}  Nf5 {[%clk 0:01:03]} 26. Nxf5 {[%clk 0:02:07]}  Qxf5 {[%clk 0:01:04]} 27. g3 {[%clk 0:01:44]}  Be7 {[%clk 0:00:51]} 28. Ne4 {[%clk 0:01:35]}  Qc8 {[%clk 0:00:45]} 29. Qd5 {[%clk 0:00:56]}  Kh7 {[%clk 0:00:45]} 30. Bd3 {[%clk 0:00:49]}  f5 {[%clk 0:00:38]} 31. Ng5+ {[%clk 0:00:21]}  Bxg5 {[%clk 0:00:38]} 32. hxg5 {[%clk 0:00:22]}  e4 {[%clk 0:00:34]} 33. Be2 {[%clk 0:00:19]}  f4 {[%clk 0:00:26]} 34. Qxd6 {[%clk 0:00:19]}  f3 {[%clk 0:00:19]} 35. Bf1 {[%clk 0:00:19]}  Rb7 {[%clk 0:00:19]} 36. Rd1 {[%clk 0:00:16]}  Qf5 {[%clk 0:00:17]} 37. Qf4 {[%clk 0:00:14]}  Qc5 {[%clk 0:00:16]} 38. Rd8 {[%clk 0:00:10]}  Qe7 {[%clk 0:00:10]} 39. Rd5 {[%clk 0:00:08]}  Ra7 {[%clk 0:00:09]} 40. Rd1 {[%clk 0:00:08]}  Qc5 {[%clk 0:00:08]} 41. Qe3 {[%clk 0:00:08]}  Qxe3 {[%clk 0:00:06]} 42. fxe3 {[%clk 0:00:09]}  Ra2 {[%clk 0:00:07]} 43. Rb1 {[%clk 0:00:07]}  Be8 {[%clk 0:00:06]} 44. c4 {[%clk 0:00:07]}  Kg6 {[%clk 0:00:05]} 45. c5 {[%clk 0:00:07]}  Ra5 {[%clk 0:00:04]} 46. c6 {[%clk 0:00:04]}  Ra8 {[%clk 0:00:00]} 47. Rc1 {[%clk 0:00:04]} 1-0


[Site "https://www.chess.com"]

[Event "Titled Tuesday Blitz November 14 Late 2023"]
[White "Holt, Conrad"]
[Black "Makarian, Rudik"]
[WhiteFideId "2034387"]
[BlackFideId "44105681"]
[WhiteElo "2810"]
[BlackElo "2961"]
[Result "0-1"]
[Round "9"]
[TimeControl "180+1"]
[Date "2023.11.14"]
[WhiteClock "0:00:07"]
[BlackClock "0:00:25"]
[Board "6"]

1. d4 {[%clk 0:02:55]}  Nf6 {[%clk 0:02:58]} 2. c4 {[%clk 0:02:55]}  e6 {[%clk 0:02:58]} 3. Nf3 {[%clk 0:02:56]}  d5 {[%clk 0:02:58]} 4. Nc3 {[%clk 0:02:54]}  dxc4 {[%clk 0:02:56]} 5. e4 {[%clk 0:02:51]}  b5 {[%clk 0:02:56]} 6. Bg5 {[%clk 0:02:32]}  a6 {[%clk 0:02:47]} 7. Be2 {[%clk 0:02:28]}  h6 {[%clk 0:02:45]} 8. Bxf6 {[%clk 0:02:26]}  Qxf6 {[%clk 0:02:42]} 9. a4 {[%clk 0:02:22]}  b4 {[%clk 0:02:35]} 10. Nb1 {[%clk 0:02:16]}  Bb7 {[%clk 0:02:30]} 11. Qc2 {[%clk 0:02:14]}  b3 {[%clk 0:01:54]} 12. Qxc4 {[%clk 0:02:12]}  Bxe4 {[%clk 0:01:54]} 13. Nbd2 {[%clk 0:02:08]}  Bd5 {[%clk 0:01:54]} 14. Qxc7 {[%clk 0:02:05]}  Nc6 {[%clk 0:01:39]} 15. Bxa6 {[%clk 0:01:45]}  Bb4 {[%clk 0:01:11]} 16. Bb7 {[%clk 0:01:36]}  O-O {[%clk 0:01:10]} 17. Bxa8 {[%clk 0:01:21]}  Rxa8 {[%clk 0:01:11]} 18. O-O {[%clk 0:01:21]}  Bxd2 {[%clk 0:01:11]} 19. Nxd2 {[%clk 0:01:21]}  Qg5 {[%clk 0:01:11]} 20. f3 {[%clk 0:00:45]}  Qxd2 {[%clk 0:01:11]} 21. Rf2 {[%clk 0:00:45]}  Qb4 {[%clk 0:01:05]} 22. Rc1 {[%clk 0:00:30]}  Qxa4 {[%clk 0:01:02]} 23. Rd2 {[%clk 0:00:27]}  Nxd4 {[%clk 0:00:52]} 24. Qc5 {[%clk 0:00:20]}  Nf5 {[%clk 0:00:48]} 25. h3 {[%clk 0:00:16]}  Qf4 {[%clk 0:00:47]} 26. Re2 {[%clk 0:00:13]}  Kh7 {[%clk 0:00:42]} 27. Rce1 {[%clk 0:00:13]}  Qg5 {[%clk 0:00:36]} 28. Kh2 {[%clk 0:00:12]}  Qg3+ {[%clk 0:00:35]} 29. Kh1 {[%clk 0:00:13]}  Ra4 {[%clk 0:00:35]} 30. Qf2 {[%clk 0:00:12]}  Rh4 {[%clk 0:00:33]} 31. Rf1 {[%clk 0:00:09]}  Qxf2 {[%clk 0:00:25]} 32. Rfxf2 {[%clk 0:00:07]}  Ng3+ {[%clk 0:00:25]} 0-1


[Site "https://www.chess.com"]

[Event "Titled Tuesday Blitz November 14 Late 2023"]
[White "Klekowski, Maciej"]
[Black "Naroditsky, Daniel"]
[WhiteFideId "1132717"]
[BlackFideId "2026961"]
[WhiteElo "2831"]
[BlackElo "3098"]
[Result "0-1"]
[Round "9"]
[TimeControl "180+1"]
[Date "2023.11.14"]
[WhiteClock "0:00:00"]
[BlackClock "0:00:08"]
[Board "8"]

1. c4 {[%clk 0:03:00]}  g6 {[%clk 0:02:58]} 2. Nc3 {[%clk 0:03:00]}  Bg7 {[%clk 0:02:56]} 3. g3 {[%clk 0:03:01]}  d6 {[%clk 0:02:56]} 4. Bg2 {[%clk 0:03:02]}  Nf6 {[%clk 0:02:56]} 5. e3 {[%clk 0:03:02]}  O-O {[%clk 0:02:57]} 6. Nge2 {[%clk 0:03:03]}  c5 {[%clk 0:02:58]} 7. O-O {[%clk 0:03:02]}  Nc6 {[%clk 0:02:59]} 8. d4 {[%clk 0:03:03]}  Bf5 {[%clk 0:02:55]} 9. h3 {[%clk 0:02:59]}  Qc8 {[%clk 0:02:47]} 10. g4 {[%clk 0:02:56]}  Bd7 {[%clk 0:02:47]} 11. Ng3 {[%clk 0:02:47]}  h6 {[%clk 0:02:24]} 12. b3 {[%clk 0:02:31]}  Nh7 {[%clk 0:01:48]} 13. Nce2 {[%clk 0:02:24]}  Ng5 {[%clk 0:01:22]} 14. Bb2 {[%clk 0:02:16]}  f5 {[%clk 0:01:05]} 15. f4 {[%clk 0:02:05]}  Nf7 {[%clk 0:00:45]} 16. gxf5 {[%clk 0:02:06]}  Bxf5 {[%clk 0:00:45]} 17. Nxf5 {[%clk 0:01:52]}  Qxf5 {[%clk 0:00:46]} 18. Ng3 {[%clk 0:01:52]}  Qd7 {[%clk 0:00:46]} 19. Qd2 {[%clk 0:01:51]}  cxd4 {[%clk 0:00:42]} 20. exd4 {[%clk 0:01:52]}  e6 {[%clk 0:00:42]} 21. Rae1 {[%clk 0:01:47]}  Rae8 {[%clk 0:00:39]} 22. d5 {[%clk 0:01:37]}  exd5 {[%clk 0:00:40]} 23. Bxg7 {[%clk 0:01:36]}  Kxg7 {[%clk 0:00:41]} 24. cxd5 {[%clk 0:01:34]}  Ne7 {[%clk 0:00:40]} 25. Re6 {[%clk 0:01:12]}  Nd8 {[%clk 0:00:39]} 26. Qd4+ {[%clk 0:01:12]}  Kh7 {[%clk 0:00:39]} 27. f5 {[%clk 0:01:01]}  Nxe6 {[%clk 0:00:26]} 28. fxe6 {[%clk 0:00:59]}  Qd8 {[%clk 0:00:19]} 29. Qxa7 {[%clk 0:00:32]}  Rxf1+ {[%clk 0:00:18]} 30. Bxf1 {[%clk 0:00:23]}  Qc7 {[%clk 0:00:14]} 31. Bc4 {[%clk 0:00:17]}  Rf8 {[%clk 0:00:12]} 32. Kg2 {[%clk 0:00:15]}  Nf5 {[%clk 0:00:08]} 33. Ne4 {[%clk 0:00:02]}  Qe7 {[%clk 0:00:09]} 34. a4 {[%clk 0:00:00]}  Nh4+ {[%clk 0:00:08]} 0-1


[Site "https://www.chess.com"]

[Event "Titled Tuesday Blitz November 14 Late 2023"]
[White "Yoo, Christopher Woojin"]
[Black "Ghasi, Ameet K"]
[WhiteFideId "30909694"]
[BlackFideId "409200"]
[WhiteElo "3053"]
[BlackElo "2806"]
[Result "1-0"]
[Round "9"]
[TimeControl "180+1"]
[Date "2023.11.14"]
[WhiteClock "0:01:10"]
[BlackClock "0:00:03"]
[Board "10"]

1. e4 {[%clk 0:03:00]}  g6 {[%clk 0:03:00]} 2. d4 {[%clk 0:02:59]}  Bg7 {[%clk 0:03:01]} 3. Nf3 {[%clk 0:02:59]}  d6 {[%clk 0:03:01]} 4. Bc4 {[%clk 0:02:59]}  e6 {[%clk 0:03:01]} 5. Nc3 {[%clk 0:02:59]}  h6 {[%clk 0:03:00]} 6. O-O {[%clk 0:02:59]}  a6 {[%clk 0:03:00]} 7. a4 {[%clk 0:02:58]}  Nd7 {[%clk 0:03:01]} 8. Re1 {[%clk 0:02:58]}  b6 {[%clk 0:03:01]} 9. Be3 {[%clk 0:02:51]}  Bb7 {[%clk 0:03:01]} 10. Qd2 {[%clk 0:02:51]}  Ngf6 {[%clk 0:03:00]} 11. e5 {[%clk 0:02:42]}  dxe5 {[%clk 0:02:53]} 12. d5 {[%clk 0:02:19]}  exd5 {[%clk 0:02:19]} 13. Nxd5 {[%clk 0:02:17]}  Bxd5 {[%clk 0:02:10]} 14. Bxd5 {[%clk 0:02:17]}  Nxd5 {[%clk 0:02:11]} 15. Qxd5 {[%clk 0:02:17]}  O-O {[%clk 0:02:11]} 16. Rad1 {[%clk 0:02:16]}  Nf6 {[%clk 0:02:12]} 17. Qxe5 {[%clk 0:02:14]}  Ng4 {[%clk 0:01:48]} 18. Qf4 {[%clk 0:02:03]}  Qc8 {[%clk 0:01:46]} 19. Bd4 {[%clk 0:02:03]}  g5 {[%clk 0:01:33]} 20. Qg3 {[%clk 0:02:00]}  Nf6 {[%clk 0:01:20]} 21. h4 {[%clk 0:01:39]}  Nh5 {[%clk 0:01:14]} 22. Qh2 {[%clk 0:01:38]}  g4 {[%clk 0:01:04]} 23. Bxg7 {[%clk 0:01:35]}  Nxg7 {[%clk 0:00:56]} 24. Ne5 {[%clk 0:01:35]}  Qf5 {[%clk 0:00:46]} 25. Qg3 {[%clk 0:01:31]}  h5 {[%clk 0:00:40]} 26. Qc3 {[%clk 0:01:32]}  Ne6 {[%clk 0:00:22]} 27. Nc6 {[%clk 0:01:18]}  Rfe8 {[%clk 0:00:18]} 28. Rd7 {[%clk 0:01:15]}  Nf4 {[%clk 0:00:12]} 29. Rxe8+ {[%clk 0:01:08]}  Rxe8 {[%clk 0:00:07]} 30. Ne7+ {[%clk 0:01:09]}  Rxe7 {[%clk 0:00:04]} 31. Rd8+ {[%clk 0:01:09]}  Kh7 {[%clk 0:00:03]} 32. Qh8+ {[%clk 0:01:09]}  Kg6 {[%clk 0:00:03]} 33. Rg8# {[%clk 0:01:10]} 1-0


[Site "https://www.chess.com"]

[Event "Titled Tuesday Blitz November 14 Late 2023"]
[White "Hakobyan, Aram"]
[Black "mind1mover"]
[WhiteFideId "13306677"]
[WhiteElo "3015"]
[BlackElo "2805"]
[Result "1-0"]
[Round "9"]
[TimeControl "180+1"]
[Date "2023.11.14"]
[WhiteClock "0:00:15"]
[BlackClock "0:00:00"]
[Board "11"]

1. c4 {[%clk 0:03:00]}  e5 {[%clk 0:02:57]} 2. Nc3 {[%clk 0:03:00]}  Bb4 {[%clk 0:02:54]} 3. Qb3 {[%clk 0:02:58]}  a5 {[%clk 0:02:50]} 4. Nd5 {[%clk 0:02:58]}  Nc6 {[%clk 0:02:49]} 5. Qg3 {[%clk 0:02:57]}  Bf8 {[%clk 0:02:34]} 6. Nf3 {[%clk 0:02:51]}  d6 {[%clk 0:02:33]} 7. e3 {[%clk 0:02:41]}  Nf6 {[%clk 0:02:29]} 8. Nxf6+ {[%clk 0:02:36]}  Qxf6 {[%clk 0:02:30]} 9. a3 {[%clk 0:02:20]}  a4 {[%clk 0:02:28]} 10. d3 {[%clk 0:02:19]}  Qg6 {[%clk 0:02:19]} 11. Be2 {[%clk 0:02:15]}  Be7 {[%clk 0:02:13]} 12. Bd2 {[%clk 0:02:14]}  Bf5 {[%clk 0:02:10]} 13. e4 {[%clk 0:02:14]}  Qxg3 {[%clk 0:02:10]} 14. hxg3 {[%clk 0:02:13]}  Bg4 {[%clk 0:02:10]} 15. Be3 {[%clk 0:02:10]}  Bxf3 {[%clk 0:02:06]} 16. gxf3 {[%clk 0:02:11]}  Nd4 {[%clk 0:02:03]} 17. Bd1 {[%clk 0:02:11]}  h5 {[%clk 0:01:48]} 18. f4 {[%clk 0:02:11]}  h4 {[%clk 0:01:47]} 19. Kd2 {[%clk 0:01:54]}  c6 {[%clk 0:01:37]} 20. Rh3 {[%clk 0:01:32]}  Bf6 {[%clk 0:01:12]} 21. Rb1 {[%clk 0:01:29]}  g6 {[%clk 0:01:10]} 22. Bg4 {[%clk 0:01:28]}  Ke7 {[%clk 0:00:57]} 23. fxe5 {[%clk 0:01:12]}  Nb3+ {[%clk 0:00:43]} 24. Kc2 {[%clk 0:01:10]}  dxe5 {[%clk 0:00:39]} 25. gxh4 {[%clk 0:01:10]}  Rxh4 {[%clk 0:00:35]} 26. Rxh4 {[%clk 0:01:11]}  Bxh4 {[%clk 0:00:35]} 27. Rh1 {[%clk 0:01:12]}  Bf6 {[%clk 0:00:35]} 28. Bb6 {[%clk 0:01:06]}  Ra6 {[%clk 0:00:30]} 29. Be3 {[%clk 0:00:57]}  Ra8 {[%clk 0:00:29]} 30. Kc3 {[%clk 0:00:57]}  c5 {[%clk 0:00:22]} 31. Rh3 {[%clk 0:00:57]}  Nd4 {[%clk 0:00:17]} 32. Bd1 {[%clk 0:00:53]}  b6 {[%clk 0:00:16]} 33. Rh1 {[%clk 0:00:52]}  Ne6 {[%clk 0:00:16]} 34. Bg4 {[%clk 0:00:51]}  Nd4 {[%clk 0:00:15]} 35. Rh7 {[%clk 0:00:51]}  Rd8 {[%clk 0:00:03]} 36. Bd1 {[%clk 0:00:47]}  Ra8 {[%clk 0:00:03]} 37. Rh3 {[%clk 0:00:48]}  Ne6 {[%clk 0:00:03]} 38. Kd2 {[%clk 0:00:48]}  Nd4 {[%clk 0:00:04]} 39. Rh1 {[%clk 0:00:47]}  Ne6 {[%clk 0:00:04]} 40. Kc3 {[%clk 0:00:43]}  Nd4 {[%clk 0:00:04]} 41. Rh3 {[%clk 0:00:35]}  Ne6 {[%clk 0:00:05]} 42. Bf3 {[%clk 0:00:27]}  Nd4 {[%clk 0:00:05]} 43. Bg4 {[%clk 0:00:27]}  Rb8 {[%clk 0:00:03]} 44. Rh7 {[%clk 0:00:23]}  Ra8 {[%clk 0:00:03]} 45. Bd1 {[%clk 0:00:22]}  Ne6 {[%clk 0:00:03]} 46. f3 {[%clk 0:00:20]}  Nd4 {[%clk 0:00:03]} 47. Rh3 {[%clk 0:00:19]}  Ne6 {[%clk 0:00:04]} 48. Kd2 {[%clk 0:00:19]}  Bg5 {[%clk 0:00:03]} 49. Ke2 {[%clk 0:00:18]}  Nf4+ {[%clk 0:00:02]} 50. Bxf4 {[%clk 0:00:19]}  Bxf4 {[%clk 0:00:03]} 51. Rh7 {[%clk 0:00:19]}  Bc1 {[%clk 0:00:03]} 52. b3 {[%clk 0:00:18]}  axb3 {[%clk 0:00:02]} 53. Bxb3 {[%clk 0:00:19]}  Rxa3 {[%clk 0:00:03]} 54. Bc2 {[%clk 0:00:20]}  Ra2 {[%clk 0:00:03]} 55. Kd1 {[%clk 0:00:21]}  Ra1 {[%clk 0:00:02]} 56. Rh8 {[%clk 0:00:21]}  Be3+ {[%clk 0:00:02]} 57. Ke2 {[%clk 0:00:22]}  Bd4 {[%clk 0:00:02]} 58. Rb8 {[%clk 0:00:22]}  Rc1 {[%clk 0:00:02]} 59. Ba4 {[%clk 0:00:22]}  Rb1 {[%clk 0:00:02]} 60. Bb5 {[%clk 0:00:22]}  Rb2+ {[%clk 0:00:03]} 61. Kd1 {[%clk 0:00:22]}  Kf6 {[%clk 0:00:03]} 62. Rb7 {[%clk 0:00:22]}  Rb1+ {[%clk 0:00:01]} 63. Kc2 {[%clk 0:00:23]}  Rb2+ {[%clk 0:00:02]} 64. Kc1 {[%clk 0:00:23]}  Rf2 {[%clk 0:00:03]} 65. Be8 {[%clk 0:00:24]}  Kg5 {[%clk 0:00:03]} 66. Rxf7 {[%clk 0:00:25]}  Be3+ {[%clk 0:00:02]} 67. Kd1 {[%clk 0:00:25]}  Rd2+ {[%clk 0:00:03]} 68. Ke1 {[%clk 0:00:26]}  Rxd3 {[%clk 0:00:03]} 69. Ke2 {[%clk 0:00:27]}  Rb3 {[%clk 0:00:03]} 70. Rg7 {[%clk 0:00:28]}  Bd4 {[%clk 0:00:02]} 71. Rxg6+ {[%clk 0:00:28]}  Kh4 {[%clk 0:00:02]} 72. Bd7 {[%clk 0:00:27]}  Rb2+ {[%clk 0:00:02]} 73. Kd3 {[%clk 0:00:27]}  Rb3+ {[%clk 0:00:03]} 74. Ke2 {[%clk 0:00:28]}  Rb2+ {[%clk 0:00:03]} 75. Ke1 {[%clk 0:00:29]}  Rb1+ {[%clk 0:00:04]} 76. Kd2 {[%clk 0:00:29]}  Rb2+ {[%clk 0:00:04]} 77. Kc1 {[%clk 0:00:29]}  Rb3 {[%clk 0:00:05]} 78. Rg4+ {[%clk 0:00:17]}  Kh5 {[%clk 0:00:05]} 79. Rg8 {[%clk 0:00:14]}  Kh4 {[%clk 0:00:04]} 80. Rg4+ {[%clk 0:00:13]}  Kh5 {[%clk 0:00:05]} 81. Be8+ {[%clk 0:00:14]}  Kh6 {[%clk 0:00:05]} 82. Rg6+ {[%clk 0:00:14]}  Kh7 {[%clk 0:00:05]} 83. Rg3 {[%clk 0:00:14]}  Rc3+ {[%clk 0:00:04]} 84. Kd2 {[%clk 0:00:15]}  Rxc4 {[%clk 0:00:05]} 85. Bg6+ {[%clk 0:00:16]}  Kh6 {[%clk 0:00:05]} 86. Bf7 {[%clk 0:00:16]}  Rb4 {[%clk 0:00:05]} 87. Rg6+ {[%clk 0:00:16]}  Kh7 {[%clk 0:00:05]} 88. Rc6 {[%clk 0:00:15]}  b5 {[%clk 0:00:06]} 89. Rb6 {[%clk 0:00:12]}  c4 {[%clk 0:00:06]} 90. Rb7 {[%clk 0:00:13]}  Kh6 {[%clk 0:00:06]} 91. Be8 {[%clk 0:00:14]}  Rb2+ {[%clk 0:00:06]} 92. Kc1 {[%clk 0:00:14]}  b4 {[%clk 0:00:05]} 93. f4 {[%clk 0:00:14]}  exf4 {[%clk 0:00:03]} 94. Rd7 {[%clk 0:00:15]}  c3 {[%clk 0:00:02]} 95. Rxd4 {[%clk 0:00:15]}  Kg5 {[%clk 0:00:02]} 96. e5 {[%clk 0:00:15]}  Kf5 {[%clk 0:00:03]} 97. Rd5 {[%clk 0:00:15]}  f3 {[%clk 0:00:02]} 98. Bb5 {[%clk 0:00:15]}  Rd2 {[%clk 0:00:01]} 99. Rc5 {[%clk 0:00:14]}  f2 {[%clk 0:00:00]} 100. Bc4 {[%clk 0:00:15]} 1-0


[Site "https://www.chess.com"]

[Event "Titled Tuesday Blitz November 14 Late 2023"]
[White "Eljanov, Pavel"]
[Black "Dourerassou, Jonathan"]
[WhiteFideId "14102951"]
[BlackFideId "628050"]
[WhiteElo "2878"]
[BlackElo "2793"]
[Result "1-0"]
[Round "9"]
[TimeControl "180+1"]
[Date "2023.11.14"]
[WhiteClock "0:00:50"]
[BlackClock "0:00:01"]
[Board "13"]

1. d4 {[%clk 0:02:56]}  Nf6 {[%clk 0:02:59]} 2. Nf3 {[%clk 0:02:55]}  g6 {[%clk 0:03:00]} 3. g3 {[%clk 0:02:52]}  Bg7 {[%clk 0:03:00]} 4. Bg2 {[%clk 0:02:53]}  d5 {[%clk 0:03:00]} 5. c4 {[%clk 0:02:53]}  O-O {[%clk 0:03:01]} 6. O-O {[%clk 0:02:53]}  dxc4 {[%clk 0:03:02]} 7. Na3 {[%clk 0:02:49]}  Nc6 {[%clk 0:03:02]} 8. Nxc4 {[%clk 0:02:48]}  Be6 {[%clk 0:03:02]} 9. b3 {[%clk 0:02:35]}  Bd5 {[%clk 0:03:02]} 10. Bb2 {[%clk 0:02:27]}  a5 {[%clk 0:03:00]} 11. a4 {[%clk 0:02:26]}  Qb8 {[%clk 0:02:52]} 12. Rc1 {[%clk 0:02:23]}  b5 {[%clk 0:02:51]} 13. Ne3 {[%clk 0:02:16]}  Be4 {[%clk 0:02:47]} 14. Ne5 {[%clk 0:02:08]}  Bxg2 {[%clk 0:02:40]} 15. Kxg2 {[%clk 0:02:04]}  Nxe5 {[%clk 0:02:32]} 16. dxe5 {[%clk 0:02:05]}  Qb7+ {[%clk 0:02:30]} 17. Kg1 {[%clk 0:02:01]}  Rfd8 {[%clk 0:02:29]} 18. Qc2 {[%clk 0:02:01]}  Nd5 {[%clk 0:02:09]} 19. Nxd5 {[%clk 0:01:44]}  Rxd5 {[%clk 0:02:09]} 20. f4 {[%clk 0:01:42]}  bxa4 {[%clk 0:02:00]} 21. bxa4 {[%clk 0:01:42]}  Rad8 {[%clk 0:01:57]} 22. Bc3 {[%clk 0:01:37]}  Qb6+ {[%clk 0:01:51]} 23. Kg2 {[%clk 0:01:35]}  Rc5 {[%clk 0:01:22]} 24. Qe4 {[%clk 0:01:35]}  Qb3 {[%clk 0:01:14]} 25. Rf3 {[%clk 0:01:26]}  Rc4 {[%clk 0:01:12]} 26. Bxa5 {[%clk 0:01:12]}  Rxe4 {[%clk 0:01:02]} 27. Rxb3 {[%clk 0:01:12]}  Rxe2+ {[%clk 0:00:57]} 28. Kf3 {[%clk 0:01:12]}  Rxh2 {[%clk 0:00:43]} 29. Bxc7 {[%clk 0:01:11]}  Ra8 {[%clk 0:00:40]} 30. a5 {[%clk 0:01:11]}  e6 {[%clk 0:00:40]} 31. Rb8+ {[%clk 0:01:07]}  Rxb8 {[%clk 0:00:40]} 32. Bxb8 {[%clk 0:01:08]}  h5 {[%clk 0:00:40]} 33. Ra1 {[%clk 0:01:07]}  Bf8 {[%clk 0:00:22]} 34. Bd6 {[%clk 0:01:07]}  Rc2 {[%clk 0:00:21]} 35. a6 {[%clk 0:01:05]}  Rc8 {[%clk 0:00:17]} 36. a7 {[%clk 0:01:05]}  Ra8 {[%clk 0:00:18]} 37. Ke4 {[%clk 0:01:05]}  f5+ {[%clk 0:00:14]} 38. Kd4 {[%clk 0:01:05]}  Kf7 {[%clk 0:00:14]} 39. Kc5 {[%clk 0:01:05]}  g5 {[%clk 0:00:05]} 40. Kb6 {[%clk 0:01:01]}  h4 {[%clk 0:00:04]} 41. gxh4 {[%clk 0:01:01]}  gxf4 {[%clk 0:00:03]} 42. Bxf8 {[%clk 0:00:58]}  Rxf8 {[%clk 0:00:02]} 43. a8=Q {[%clk 0:00:58]}  Rxa8 {[%clk 0:00:03]} 44. Rxa8 {[%clk 0:00:58]}  Kg6 {[%clk 0:00:04]} 45. Kc5 {[%clk 0:00:54]}  Kh5 {[%clk 0:00:04]} 46. Rg8 {[%clk 0:00:49]}  f3 {[%clk 0:00:03]} 47. Rg3 {[%clk 0:00:49]}  Kxh4 {[%clk 0:00:03]} 48. Rxf3 {[%clk 0:00:49]}  Kg4 {[%clk 0:00:04]} 49. Rf1 {[%clk 0:00:49]}  f4 {[%clk 0:00:04]} 50. Kd6 {[%clk 0:00:49]}  Kf5 {[%clk 0:00:02]} 51. Rxf4+ {[%clk 0:00:49]}  Kxf4 {[%clk 0:00:01]} 52. Kxe6 {[%clk 0:00:50]} 1-0


[Site "https://www.chess.com"]

[Event "Titled Tuesday Blitz November 14 Late 2023"]
[White "Djokic, Mihailo"]
[Black "Zakhartsov, Vladimir"]
[WhiteFideId "976440"]
[BlackFideId "4145097"]
[WhiteElo "2693"]
[BlackElo "2856"]
[Result "0-1"]
[Round "9"]
[TimeControl "180+1"]
[Date "2023.11.14"]
[WhiteClock "0:00:00"]
[BlackClock "0:00:05"]
[Board "16"]

1. e4 {[%clk 0:03:00]}  c6 {[%clk 0:02:58]} 2. d4 {[%clk 0:03:01]}  d5 {[%clk 0:02:58]} 3. e5 {[%clk 0:03:01]}  c5 {[%clk 0:02:58]} 4. dxc5 {[%clk 0:03:02]}  e6 {[%clk 0:02:58]} 5. Nf3 {[%clk 0:03:02]}  Bxc5 {[%clk 0:02:52]} 6. Bd3 {[%clk 0:03:02]}  Ne7 {[%clk 0:02:48]} 7. Nbd2 {[%clk 0:03:03]}  Ng6 {[%clk 0:02:46]} 8. Nb3 {[%clk 0:03:01]}  Bb6 {[%clk 0:02:44]} 9. O-O {[%clk 0:03:02]}  Nc6 {[%clk 0:02:44]} 10. Re1 {[%clk 0:03:02]}  Bc7 {[%clk 0:02:43]} 11. Bg5 {[%clk 0:03:00]}  f6 {[%clk 0:02:33]} 12. exf6 {[%clk 0:03:00]}  gxf6 {[%clk 0:02:34]} 13. Bh6 {[%clk 0:03:00]}  Rg8 {[%clk 0:02:31]} 14. Nc5 {[%clk 0:02:56]}  Kf7 {[%clk 0:02:30]} 15. c4 {[%clk 0:02:53]}  Qd6 {[%clk 0:02:19]} 16. cxd5 {[%clk 0:02:47]}  exd5 {[%clk 0:02:17]} 17. Rc1 {[%clk 0:02:45]}  Bg4 {[%clk 0:02:17]} 18. Nxb7 {[%clk 0:02:37]}  Qd7 {[%clk 0:02:08]} 19. Bb5 {[%clk 0:02:04]}  Nh4 {[%clk 0:00:39]} 20. Bxc6 {[%clk 0:02:03]}  Nxf3+ {[%clk 0:00:26]} 21. Kh1 {[%clk 0:01:27]}  Nxe1 {[%clk 0:00:26]} 22. Qxd5+ {[%clk 0:01:12]}  Qxd5 {[%clk 0:00:20]} 23. Bxd5+ {[%clk 0:01:12]}  Kg6 {[%clk 0:00:20]} 24. Bxg8 {[%clk 0:01:07]}  Rxg8 {[%clk 0:00:19]} 25. Bd2 {[%clk 0:00:57]}  Nxg2 {[%clk 0:00:07]} 26. Rxc7 {[%clk 0:00:49]}  Bf3 {[%clk 0:00:06]} 27. Kg1 {[%clk 0:00:41]}  Rb8 {[%clk 0:00:06]} 28. Nd6 {[%clk 0:00:08]}  Rxb2 {[%clk 0:00:06]} 29. a4 {[%clk 0:00:00]}  Rxd2 {[%clk 0:00:05]} 0-1


[Site "https://www.chess.com"]